bitfinex-derivatives/quotes_BTCF0:USTF0_20240910
["timestamp","ask_amount","ask_price","bid_price","bid_amount"]
[1725935269667,0.4366344,56683.0,56682.0,0.21106944]
[1725935269864,0.27881,56683.0,56682.0,0.0138]
[1725935270266,0.090605,56683.0,56682.0,0.08431138]
[1725935270466,0.190605,56683.0,56682.0,0.08431138]
[1725935271269,0.190605,56683.0,56682.0,0.0138]
[1725935272265,0.190605,56683.0,56682.0,0.08431138]
[1725935272266,0.27881,56683.0,56682.0,0.08431138]
[1725935272669,0.190605,56683.0,56682.0,0.08431138]
[1725935273562,0.190605,56683.0,56682.0,0.0138]
[1725935276071,0.27881,56683.0,56682.0,0.0138]
[1725935278479,0.80809,56683.0,56682.0,0.0138]
[1725935278671,0.90339,56683.0,56682.0,0.0138]
[1725935279574,1.50339,56683.0,56682.0,0.0138]
[1725935280077,1.591595,56683.0,56682.0,0.0138]
[1725935280583,1.50339,56683.0,56682.0,0.0138]
[1725935280977,1.591595,56683.0,56682.0,0.0138]
[1725935281483,0.37411,56683.0,56682.0,0.0138]
[1725935281776,0.991595,56683.0,56682.0,0.0138]
[1725935282181,0.90339,56683.0,56682.0,0.0138]
[1725935282673,0.37411,56683.0,56682.0,0.0138]
[1725935283184,0.991595,56683.0,56682.0,0.0138]
[1725935283882,0.37411,56683.0,56682.0,0.0138]
[1725935284379,0.462315,56683.0,56682.0,0.0138]
[1725935284581,0.37411,56683.0,56682.0,0.0138]
[1725935284878,1.46399418,56683.0,56671.0,0.0041]
[1725935285179,0.088227,56669.0,56668.0,0.32682]
[1725935285376,0.088227,56669.0,56666.0,0.633231]
[1725935285377,0.21682894,56669.0,56666.0,0.089151]
[1725935285574,0.0008,56667.0,56666.0,0.088231]
[1725935285783,0.02940357,56667.0,56666.0,0.088231]
[1725935286383,0.02940357,56667.0,56666.0,0.1156333]
[1725935286573,0.02940357,56667.0,56666.0,0.2156333]
[1725935287078,0.0008,56667.0,56666.0,0.2156333]
[1725935287775,0.0018,56667.0,56666.0,0.2156333]
[1725935288177,0.0028,56667.0,56666.0,0.2176333]
[1725935291784,0.0028,56667.0,56666.0,0.32557956]
[1725935294579,0.0028,56667.0,56666.0,0.51963184]
[1725935294781,0.0028,56667.0,56666.0,0.41381056]
[1725935295485,0.0028,56667.0,56666.0,0.31381056]
[1725935295882,0.0028,56667.0,56666.0,0.41381056]
[1725935298086,0.0041,56683.0,56679.0,0.088211]
[1725935298287,0.10498252,56691.0,56679.0,0.088211]
[1725935298288,0.1,56685.0,56684.0,0.088202]
[1725935298484,0.1,56685.0,56684.0,0.15871088]
[1725935298788,0.1,56685.0,56684.0,0.088202]
[1725935299500,0.12837958,56685.0,56684.0,0.15869572]
[1725935299685,0.21658158,56685.0,56684.0,0.05287038]
[1725935299986,0.21658158,56685.0,56683.0,0.05287038]
[1725935299987,0.088203,56684.0,56683.0,0.05287038]
[1725935300187,0.189003,56684.0,56683.0,0.05287038]
[1725935300883,0.189003,56684.0,56683.0,0.088205]
[1725935301085,0.189003,56684.0,56683.0,0.14107087]
[1725935301779,0.193003,56684.0,56683.0,0.14107087]
[1725935302379,0.189003,56684.0,56683.0,0.14107087]
[1725935302584,0.193003,56684.0,56683.0,0.14107087]
[1725935303096,0.198003,56684.0,56683.0,0.14107087]
[1725935303598,0.193003,56684.0,56683.0,0.14107087]
[1725935303797,0.193003,56684.0,56683.0,0.14207087]
[1725935304195,0.189003,56684.0,56683.0,0.14407087]
[1725935304680,0.189003,56684.0,56683.0,0.14207087]
[1725935304886,0.189003,56684.0,56683.0,0.14407087]
[1725935306397,0.189003,56684.0,56683.0,0.003]
[1725935307800,0.189003,56684.0,56683.0,0.090205]
[1725935307984,0.189003,56684.0,56683.0,0.15969872]
[1725935307985,0.1008,56684.0,56683.0,0.15969872]
[1725935308295,0.1008,56684.0,56683.0,0.089205]
[1725935308489,0.0008,56684.0,56683.0,0.15969872]
[1725935308689,0.0008,56684.0,56683.0,0.088205]
[1725935309808,0.1008,56684.0,56683.0,0.088205]
[1725935310703,0.1008,56684.0,56683.0,0.089205]
[1725935311094,0.1008,56684.0,56683.0,0.091205]
[1725935311395,0.189003,56684.0,56683.0,0.003]
[1725935311595,0.189003,56684.0,56683.0,0.07344529]
[1725935312201,0.189003,56684.0,56683.0,0.003]
[1725935312391,0.189003,56684.0,56683.0,0.07344529]
[1725935312593,0.189003,56684.0,56683.0,0.07244529]
[1725935312797,0.189003,56684.0,56683.0,0.07344529]
[1725935313492,0.189003,56684.0,56683.0,0.07244529]
[1725935313696,0.189003,56684.0,56683.0,0.002]
[1725935314303,0.088205,56683.0,56682.0,0.07044529]
[1725935314600,0.089005,56683.0,56682.0,0.07044529]
[1725935314802,0.1699691,56683.0,56681.0,0.088208]
[1725935314992,0.1817641,56682.0,56681.0,0.088208]
[1725935316598,0.2283641,56682.0,56681.0,0.088208]
[1725935317000,0.2283641,56682.0,56681.0,0.089208]
[1725935317803,0.2283641,56682.0,56681.0,0.091208]
[1725935318207,0.3165711,56682.0,56681.0,0.091208]
[1725935318698,0.3165711,56682.0,56681.0,0.088208]
[1725935318903,0.3165711,56682.0,56681.0,0.091208]
[1725935320195,0.3165711,56682.0,56681.0,0.090208]
[1725935320495,0.3165711,56682.0,56681.0,0.091208]
[1725935321802,0.235607,56682.0,56681.0,0.090208]
[1725935323796,0.1474,56682.0,56681.0,0.090208]
[1725935324005,0.0474,56682.0,56681.0,0.089208]
[1725935324208,0.0474,56682.0,56681.0,0.090208]
[1725935325898,0.135607,56682.0,56681.0,0.090208]
[1725935327301,0.135607,56682.0,56681.0,0.089208]
[1725935327507,0.135607,56682.0,56681.0,0.090208]
[1725935328211,0.089007,56682.0,56681.0,0.090208]
[1725935328401,0.089007,56682.0,56681.0,0.089208]
[1725935328608,0.089007,56682.0,56681.0,0.090208]
[1725935336904,0.17011192,56682.0,56681.0,0.090208]
[1725935338008,0.23106544,56682.0,56681.0,0.090208]
[1725935338607,0.089007,56682.0,56681.0,0.090208]
[1725935338812,0.2578932,56682.0,56681.0,0.090208]
[1725935339212,0.23105263,56682.0,56681.0,0.090208]
[1725935340119,0.23101202,56682.0,56681.0,0.090208]
[1725935341418,0.37061538,56682.0,56681.0,0.090208]
[1725935341804,0.23025263,56682.0,56681.0,0.090208]
[1725935342214,0.23025263,56682.0,56681.0,0.089208]
[1725935342510,0.23025263,56682.0,56681.0,0.090208]
[1725935342709,0.23025263,56682.0,56681.0,0.089208]
[1725935342913,0.23125263,56682.0,56681.0,0.089208]
[1725935343114,0.23125263,56682.0,56681.0,0.088208]
[1725935343519,0.23225263,56682.0,56681.0,0.088208]
[1725935344014,0.30059932,56682.0,56681.0,0.088208]
[1725935344319,0.30159932,56682.0,56681.0,0.088208]
[1725935344614,0.30160791,56682.0,56681.0,0.088208]
[1725935344814,0.090207,56682.0,56681.0,0.19595911]
[1725935345017,0.089207,56682.0,56681.0,0.19595911]
[1725935345318,0.090207,56682.0,56681.0,0.19595911]
[1725935347118,0.089207,56682.0,56681.0,0.19595911]
[1725935347318,0.090207,56682.0,56681.0,0.19600644]
[1725935348015,0.090207,56682.0,56681.0,0.10779844]
[1725935349720,0.089207,56682.0,56681.0,0.10779844]
[1725935349922,0.090207,56682.0,56681.0,0.10779844]
[1725935350516,0.089207,56682.0,56681.0,0.10779844]
[1725935350718,0.090207,56682.0,56681.0,0.10779844]
[1725935351810,0.090207,56682.0,56680.0,0.088209]
[1725935351811,0.088208,56681.0,56680.0,0.088209]
[1725935352010,0.29192032,56681.0,56680.0,0.088209]
[1725935352524,0.29193511,56681.0,56680.0,0.088209]
[1725935353421,0.08086807,56681.0,56680.0,0.088209]
[1725935353723,0.08086807,56681.0,56680.0,0.188209]
[1725935354025,0.16907607,56681.0,56680.0,0.188209]
[1725935357318,0.08069351,56681.0,56680.0,0.188209]
[1725935358323,0.02899602,56681.0,56680.0,0.188209]
[1725935358721,0.0041,56689.0,56688.0,0.088197]
[1725935358923,0.0804225,56689.0,56686.0,0.1]
[1725935359227,0.088193,56691.0,56686.0,0.1882]
[1725935359228,0.0004,56687.0,56686.0,0.1882]
[1725935359417,0.0289958,56687.0,56686.0,0.1882]
[1725935359923,0.009,56689.0,56688.0,0.088197]
[1725935360126,0.009,56689.0,56688.0,0.29665013]
[1725935360522,0.016,56689.0,56688.0,0.29665013]
[1725935361022,0.009,56689.0,56688.0,0.29665013]
[1725935361231,0.009,56689.0,56688.0,0.19655929]
[1725935361232,0.206196,56689.0,56688.0,0.19655929]
[1725935361524,0.294392,56689.0,56688.0,0.07088581]
[1725935361731,0.285392,56689.0,56688.0,0.0004]
[1725935361924,0.333292,56689.0,56688.0,0.0004]
[1725935362120,0.331492,56689.0,56688.0,0.0004]
[1725935362731,0.340492,56689.0,56688.0,0.0004]
[1725935363227,0.387692,56689.0,56688.0,0.0004]
[1725935363817,0.299496,56689.0,56688.0,0.0004]
[1725935364221,0.299496,56689.0,56688.0,0.07088581]
[1725935365028,0.299496,56689.0,56688.0,0.0004]
[1725935365225,0.28058181,56689.0,56688.0,0.0004]
[1725935365620,0.18058181,56689.0,56688.0,0.0004]
[1725935365820,0.18058181,56689.0,56688.0,0.088597]
[1725935365821,0.104396,56689.0,56688.0,0.088597]
[1725935366016,0.104396,56689.0,56688.0,0.188597]
[1725935368119,0.0162,56689.0,56688.0,0.188597]
[1725935368322,1e-08,56689.0,56688.0,0.29661159]
[1725935368516,1e-08,56689.0,56688.0,0.32408637]
[1725935369530,1e-08,56689.0,56688.0,0.42969215]
[1725935369834,1e-08,56689.0,56688.0,0.32408637]
[1725935373430,1e-08,56689.0,56688.0,0.41206469]
[1725935373824,1e-08,56689.0,56688.0,0.32408637]
[1725935374922,0.1228584,56689.0,56688.0,0.21607178]
[1725935375127,0.20343153,56689.0,56688.0,0.21607178]
[1725935375320,0.1228584,56689.0,56688.0,0.21607178]
[1725935375722,0.15145018,56689.0,56688.0,0.21607178]
[1725935376028,0.20343437,56689.0,56688.0,0.21607178]
[1725935376425,0.08057598,56689.0,56688.0,0.21607178]
[1725935376726,0.08893189,56689.0,56688.0,0.21607178]
[1725935377031,0.02859179,56689.0,56688.0,0.21607178]
[1725935377333,0.1224355,56689.0,56688.0,0.21607178]
[1725935377534,0.15102668,56689.0,56688.0,0.21607178]
[1725935377829,0.12245247,56689.0,56688.0,0.21607178]
[1725935378031,0.17449507,56689.0,56688.0,0.21607178]
[1725935378629,0.203086,56689.0,56688.0,0.21607178]
[1725935380332,0.20310191,56689.0,56688.0,0.21607178]
[1725935380720,0.20263143,56689.0,56688.0,0.21607178]
[1725935380920,0.17403963,56689.0,56688.0,0.21607178]
[1725935381134,0.17403963,56689.0,56688.0,0.30426878]
[1725935381324,0.20263143,56689.0,56688.0,0.30426878]
[1725935381521,0.08019585,56689.0,56688.0,0.21607178]
[1725935381721,0.12248298,56689.0,56688.0,0.30426878]
[1725935381925,0.05991237,56694.0,56693.0,0.088189]
[1725935382234,0.05991237,56694.0,56693.0,0.15858182]
[1725935382529,0.05991237,56694.0,56693.0,0.15898182]
[1725935383127,0.07391237,56694.0,56693.0,0.15998182]
[1725935383534,0.07391237,56694.0,56693.0,0.089589]
[1725935383938,0.08791237,56694.0,56693.0,0.090589]
[1725935388039,0.028,56694.0,56693.0,0.090589]
[1725935389929,0.05659075,56694.0,56693.0,0.090589]
[1725935390433,0.05659075,56694.0,56693.0,0.313467]
[1725935391136,0.05659075,56694.0,56693.0,0.225278]
[1725935391337,0.05659075,56694.0,56693.0,0.137089]
[1725935391645,0.15866886,56694.0,56693.0,0.090589]
[1725935391837,0.14466886,56694.0,56693.0,0.089589]
[1725935392142,0.15666886,56694.0,56693.0,0.090589]
[1725935392442,0.05159002,56694.0,56693.0,0.090589]
[1725935393434,0.15666813,56694.0,56693.0,0.090589]
[1725935394741,0.05159002,56694.0,56693.0,0.090589]
[1725935395135,0.05159002,56694.0,56693.0,0.178778]
[1725935395846,0.05159002,56694.0,56693.0,0.226878]
[1725935396043,0.05159002,56694.0,56693.0,0.326878]
[1725935396239,0.05159002,56694.0,56693.0,0.278778]
[1725935396240,0.15666813,56694.0,56693.0,0.278778]
[1725935396442,0.15666813,56694.0,56693.0,0.178778]
[1725935397145,0.023,56694.0,56693.0,0.19857783]
[1725935397338,0.023,56694.0,56693.0,0.19859628]
[1725935400449,1.428536,56694.0,56693.0,0.19855794]
[1725935400655,0.211188,56694.0,56693.0,0.07292532]
[1725935401354,0.111188,56694.0,56693.0,0.07292532]
[1725935401559,0.023,56694.0,56693.0,0.190589]
[1725935401944,0.023,56694.0,56693.0,0.38812627]
[1725935402357,0.023,56694.0,56693.0,0.28812627]
[1725935402559,0.023,56694.0,56693.0,0.19997081]
[1725935402954,0.023,56694.0,56693.0,0.28811411]
[1725935402955,0.123,56694.0,56693.0,0.28811411]
[1725935403659,0.211188,56694.0,56693.0,0.0024]
[1725935403863,0.828536,56694.0,56693.0,0.0024]
[1725935404051,1.428536,56694.0,56693.0,0.0024]
[1725935404451,1.428536,56694.0,56693.0,0.07291192]
[1725935404653,0.828536,56694.0,56693.0,0.07291192]
[1725935405056,0.088198,56688.0,56686.0,0.0882]
[1725935405360,0.27720925,56687.0,56686.0,0.0882]
[1725935405560,0.22720481,56687.0,56686.0,0.0882]
[1725935405858,0.27719428,56687.0,56686.0,0.0882]
[1725935406763,0.28119428,56687.0,56686.0,0.0882]
[1725935407162,0.14104034,56687.0,56686.0,0.0882]
[1725935407755,0.14504034,56687.0,56686.0,0.0882]
[1725935408260,0.14504034,56687.0,56686.0,0.1882]
[1725935408461,0.17711527,56687.0,56686.0,0.1882]
[1725935408657,0.14504034,56687.0,56686.0,0.1882]
[1725935408860,0.14504034,56687.0,56686.0,0.2342]
[1725935409055,0.14504034,56687.0,56686.0,0.2836]
[1725935409253,0.08699088,56687.0,56686.0,0.2836]
[1725935410663,0.08699088,56687.0,56686.0,0.3718]
[1725935411163,0.20959873,56687.0,56686.0,1.50104]
[1725935411383,0.1401219,56693.0,56686.0,1.37204]
[1725935411667,0.0041,56694.0,56693.0,0.176378]
[1725935411668,0.12672668,56694.0,56693.0,0.176378]
[1725935411868,0.17316613,56694.0,56693.0,1.3148674]
[1725935412164,0.17815823,56704.0,56693.0,1.3148674]
[1725935412165,0.0041,56708.0,56706.0,0.088168]
[1725935412358,0.1,56709.0,56707.0,0.08847155]
[1725935412561,0.0937,56710.0,56707.0,0.0004]
[1725935412872,0.0937,56710.0,56709.0,0.07042804]
[1725935413064,0.0937,56710.0,56707.0,0.0004]
[1725935413361,0.100566,56708.0,56707.0,0.0004]
[1725935413961,0.088566,56708.0,56707.0,0.0004]
[1725935414155,0.248566,56708.0,56707.0,0.0004]
[1725935414670,0.260566,56708.0,56707.0,0.0014]
[1725935416264,0.0124,56708.0,56707.0,0.15997709]
[1725935416565,0.0214,56708.0,56707.0,0.090568]
[1725935417971,0.0214,56708.0,56707.0,0.17863955]
[1725935418170,0.0214,56708.0,56707.0,0.29050113]
[1725935418367,0.0214,56708.0,56707.0,0.17863955]
[1725935418571,0.0214,56708.0,56707.0,0.090568]
[1725935419165,0.0214,56708.0,56707.0,0.17863955]
[1725935419365,0.0214,56708.0,56707.0,0.090568]
[1725935423163,0.1647,56724.0,56707.0,0.090568]
[1725935423164,0.0047,56724.0,56707.0,1.13144]
[1725935423371,0.088143,56723.0,56720.0,0.0004]
[1725935423571,0.088143,56723.0,56722.0,0.0004]
[1725935423766,0.088143,56723.0,56722.0,0.088144]
[1725935423973,0.088145,56722.0,56720.0,0.0004]
[1725935424169,0.088546,56721.0,56720.0,0.0004]
[1725935424370,0.100146,56721.0,56720.0,0.0004]
[1725935425283,0.104146,56721.0,56720.0,0.0004]
[1725935425775,0.104146,56721.0,56720.0,0.089547]
[1725935425776,0.016,56721.0,56720.0,0.089547]
[1725935426679,0.004,56721.0,56720.0,0.090547]
[1725935427076,0.05174169,56721.0,56715.0,0.1205323]
[1725935427286,0.13972464,56718.0,56717.0,0.088152]
[1725935427580,0.17015092,56718.0,56717.0,0.088152]
[1725935427781,0.04795634,56718.0,56717.0,1.217072]
[1725935427980,0.004,56721.0,56718.0,0.088151]
[1725935428169,0.10122396,56720.0,56719.0,0.088149]
[1725935428370,0.04684024,56720.0,56719.0,0.088149]
[1725935428575,0.13972464,56723.0,56719.0,1.12892]
[1725935428781,0.10104604,56722.0,56721.0,0.088146]
[1725935428975,0.10104604,56722.0,56721.0,0.248146]
[1725935429577,0.13972464,56723.0,56722.0,0.088144]
[1725935429782,0.13972464,56723.0,56722.0,0.088544]
[1725935429783,0.2404194,56723.0,56722.0,0.088544]
[1725935430081,0.2434194,56723.0,56722.0,0.088544]
[1725935430986,0.30496991,56723.0,56722.0,0.0004]
[1725935431281,0.30496991,56723.0,56722.0,0.0014]
[1725935431282,0.25638827,56723.0,56722.0,0.0014]
[1725935431584,0.4308327,56723.0,56722.0,0.0014]
[1725935431786,0.25338827,56723.0,56722.0,0.0014]
[1725935432374,0.42780772,56723.0,56722.0,0.0014]
[1725935432590,0.43280772,56723.0,56722.0,0.0024]
[1725935433782,0.25838827,56723.0,56722.0,0.0024]
[1725935434394,0.41536167,56723.0,56722.0,0.0024]
[1725935434590,0.25835137,56723.0,56722.0,0.0024]
[1725935435189,0.096143,56723.0,56722.0,0.0024]
[1725935437189,0.096143,56723.0,56721.0,0.083546]
[1725935437486,0.0004,56722.0,56721.0,0.083546]
[1725935438691,0.0054,56722.0,56721.0,0.084546]
[1725935439194,0.0054,56722.0,56721.0,0.085546]
[1725935439791,0.0054,56722.0,56721.0,0.084546]
[1725935440590,0.0104,56722.0,56721.0,0.13829988]
[1725935441601,0.098544,56722.0,56721.0,0.085546]
[1725935442198,0.098544,56722.0,56718.0,0.02779516]
[1725935442199,0.19874479,56722.0,56718.0,0.02515157]
[1725935442400,0.0104,56722.0,56721.0,0.088146]
[1725935442590,0.21387452,56722.0,56721.0,0.088146]
[1725935442796,0.17168188,56722.0,56721.0,0.088146]
[1725935443194,0.22882673,56722.0,56721.0,0.088146]
[1725935443389,0.17168188,56722.0,56721.0,0.088146]
[1725935444692,0.34610133,56722.0,56721.0,0.088146]
[1725935444900,0.17168188,56722.0,56721.0,0.088146]
[1725935445195,0.17168188,56722.0,56721.0,0.089146]
[1725935446502,0.21402296,56722.0,56721.0,0.089146]
[1725935446796,0.32928642,56722.0,56721.0,0.089146]
[1725935447201,0.32926308,56722.0,56721.0,0.089146]
[1725935447903,0.17168188,56722.0,56721.0,0.089146]
[1725935448100,0.17168188,56722.0,56721.0,0.11666452]
[1725935448308,0.17168188,56722.0,56721.0,0.64554452]
[1725935448696,0.21408568,56722.0,56721.0,0.64554452]
[1725935448894,0.17168188,56722.0,56721.0,0.64554452]
[1725935449094,0.17168188,56722.0,56721.0,0.73369052]
[1725935449298,0.17045167,56722.0,56721.0,0.73369052]
[1725935449499,0.32811893,56722.0,56721.0,0.73369052]
[1725935449695,0.32811893,56722.0,56721.0,1.33369052]
[1725935449896,0.32817004,56722.0,56721.0,1.33369052]
[1725935450096,0.16766726,56722.0,56721.0,1.42176207]
[1725935450301,0.01,56722.0,56721.0,1.42176207]
[1725935450498,0.01,56722.0,56721.0,0.3175208]
[1725935450800,0.098144,56722.0,56721.0,0.001]
[1725935451201,0.098144,56722.0,56721.0,0.05377833]
[1725935451393,0.098144,56722.0,56721.0,0.05380029]
[1725935451594,0.098144,56722.0,56721.0,0.001]
[1725935453296,0.098144,56722.0,56721.0,0.05380029]
[1725935453498,0.098144,56722.0,56721.0,0.001]
[1725935458616,0.098144,56722.0,56721.0,0.05384122]
[1725935458809,0.098144,56722.0,56721.0,0.001]
[1725935461315,0.098144,56722.0,56721.0,0.05385145]
[1725935461617,0.098144,56722.0,56721.0,0.001]
[1725935462022,0.098144,56722.0,56721.0,0.05385145]
[1725935462716,0.01,56722.0,56721.0,0.14199745]
[1725935465332,0.10926216,56722.0,56716.0,0.01888898]
[1725935465526,0.19326676,56717.0,56716.0,0.01888898]
[1725935465724,0.19326676,56717.0,56716.0,0.19519698]
[1725935465725,0.16050339,56717.0,56716.0,0.19519698]
[1725935465922,0.17533952,56720.0,56719.0,0.176298]
[1725935466223,0.16071125,56720.0,56719.0,0.865618]
[1725935466531,0.15483453,56720.0,56719.0,0.865618]
[1725935466728,0.15483453,56720.0,56719.0,0.336698]
[1725935467039,0.09957328,56720.0,56719.0,0.336698]
[1725935467223,0.09957328,56720.0,56719.0,1.465618]
[1725935467425,0.1275707,56723.0,56719.0,0.1604]
[1725935467622,0.007,56720.0,56719.0,0.089549]
[1725935467827,0.12976925,56720.0,56719.0,0.689149]
[1725935468022,0.12976925,56720.0,56719.0,1.306218]
[1725935468023,0.17176649,56720.0,56719.0,1.306218]
[1725935468327,0.05499724,56720.0,56719.0,1.307218]
[1725935468835,0.17776649,56720.0,56719.0,1.307218]
[1725935469232,0.05099724,56720.0,56719.0,1.554367]
[1725935469434,0.05099724,56720.0,56719.0,1.378069]
[1725935469435,0.04113279,56720.0,56719.0,1.378069]
[1725935469734,0.0041,56727.0,56719.0,1.378069]
[1725935470030,0.17533952,56730.0,56725.0,0.08814]
[1725935470031,0.14307858,56726.0,56725.0,0.08814]
[1725935470227,0.08877032,56726.0,56725.0,0.08814]
[1725935470424,0.08877032,56726.0,56725.0,1.21702]
[1725935470623,0.14285782,56726.0,56725.0,1.21702]
[1725935470825,0.14285782,56726.0,56725.0,0.84814]
[1725935471024,0.14285782,56726.0,56725.0,1.46516]
[1725935471330,0.08877032,56726.0,56725.0,1.46516]
[1725935471527,0.08877032,56726.0,56725.0,0.86516]
[1725935471929,0.08877032,56726.0,56725.0,0.86616]
[1725935472333,0.0041,56735.0,56725.0,0.45583025]
[1725935472632,0.0041,56735.0,56734.0,0.0004]
[1725935472936,0.133618,56739.0,56735.0,0.088124]
[1725935473235,0.133618,56739.0,56738.0,0.0004]
[1725935473728,0.088112,56743.0,56738.0,0.0004]
[1725935473929,0.133612,56743.0,56742.0,0.0004]
[1725935474626,0.133612,56743.0,56742.0,0.088513]
[1725935474832,0.0455,56743.0,56742.0,0.088513]
[1725935475833,0.085506,56747.0,56744.0,0.08811]
[1725935476048,0.085506,56747.0,56746.0,0.0004]
[1725935476636,0.097,56749.0,56746.0,0.088507]
[1725935476940,0.21344497,56749.0,56748.0,0.0004]
[1725935478139,0.21344497,56749.0,56748.0,0.0014]
[1725935478329,0.088097,56753.0,56748.0,0.0014]
[1725935478531,0.0482,56752.0,56751.0,0.088099]
[1725935478838,0.136298,56752.0,56751.0,0.088099]
[1725935479429,0.33888224,56752.0,56741.0,0.09256106]
[1725935479631,0.22730561,56748.0,56747.0,0.088105]
[1725935479829,0.42988985,56748.0,56747.0,0.248105]
[1725935480026,0.20258424,56748.0,56747.0,0.248105]
[1725935480235,0.13940047,56748.0,56747.0,0.248105]
[1725935480840,0.13940047,56748.0,56747.0,0.776745]
[1725935481040,0.11454929,56753.0,56748.0,0.52864]
[1725935481238,0.04396707,56757.0,56756.0,0.088092]
[1725935481440,0.13598962,56760.0,56757.0,0.68856]
[1725935481636,0.04312172,56759.0,56758.0,0.088088]
[1725935481836,0.07405315,56764.0,56757.0,0.41718693]
[1725935481837,0.07405315,56764.0,56762.0,0.088081]
[1725935482037,0.07405315,56764.0,56763.0,0.1604]
[1725935482437,0.05405003,56764.0,56763.0,0.1604]
[1725935482634,0.09717166,56769.0,56763.0,0.0004]
[1725935482839,0.19323741,56774.0,56763.0,0.0004]
[1725935482840,0.09717166,56768.0,56763.0,0.0004]
[1725935483141,0.09717166,56767.0,56763.0,0.161]
[1725935483341,0.04312163,56766.0,56763.0,0.161]
[1725935483540,0.04312163,56765.0,56764.0,0.088078]
[1725935483741,0.04312163,56771.0,56764.0,0.088078]
[1725935483943,0.09717365,56771.0,56770.0,0.0004]
[1725935486747,0.09917365,56771.0,56770.0,0.0014]
[1725935487445,0.002,56771.0,56770.0,0.0014]
[1725935488443,0.002,56771.0,56770.0,0.08947]
[1725935498163,0.250068,56771.0,56770.0,0.08947]
[1725935499751,1.378508,56771.0,56770.0,0.0014]
[1725935499953,1.29044,56771.0,56757.0,0.41718693]
[1725935500158,0.16,56762.0,56761.0,0.088084]
[1725935502557,0.088079,56764.0,56763.0,0.088081]
[1725935502753,0.088079,56764.0,56763.0,0.21486661]
[1725935503658,0.088079,56764.0,56763.0,0.21586661]
[1725935504160,0.088079,56764.0,56763.0,0.21686661]
[1725935504357,0.16,56765.0,56764.0,0.088079]
[1725935504659,0.16,56765.0,56764.0,0.21486461]
[1725935505255,0.16,56765.0,56764.0,0.32054811]
[1725935505460,0.16,56765.0,56764.0,0.21486461]
[1725935506457,0.16,56765.0,56764.0,0.21296936]
[1725935508460,0.088076,56766.0,56765.0,0.088078]
[1725935508668,0.088076,56766.0,56765.0,0.36160315]
[1725935509957,0.089076,56766.0,56765.0,0.36160315]
[1725935510260,0.001,56766.0,56765.0,0.23723201]
[1725935510761,0.001,56766.0,56765.0,0.36202965]
[1725935512066,0.001,56766.0,56765.0,0.53481201]
[1725935512363,0.001,56766.0,56765.0,0.386058]
[1725935512661,0.001,56766.0,56765.0,0.088478]
[1725935521361,0.10546823,56766.0,56765.0,0.088478]
[1725935521763,0.001,56766.0,56765.0,0.088478]
[1725935523360,0.10546823,56766.0,56765.0,0.088478]
[1725935523858,0.01407841,56771.0,56765.0,1.28888]
[1725935524168,0.13934923,56783.0,56764.0,0.05279637]
[1725935524169,0.0041,56778.0,56777.0,0.088059]
[1725935524363,0.0549,56780.0,56779.0,0.088056]
[1725935524560,0.0549,56780.0,56779.0,0.088456]
[1725935524757,0.0549,56780.0,56779.0,0.088056]
[1725935524963,0.0549,56782.0,56781.0,0.088053]
[1725935525165,0.0549,56782.0,56781.0,0.248453]
[1725935525369,0.0041,56789.0,56782.0,0.088051]
[1725935525568,0.088032,56795.0,56783.0,0.27399157]
[1725935525569,0.0108,56785.0,56783.0,0.27399157]
[1725935525758,0.0108,56792.0,56789.0,0.08804]
[1725935525961,0.0108,56792.0,56791.0,0.088437]
[1725935526267,0.0108,56794.0,56791.0,0.28539864]
[1725935526476,0.0108,56794.0,56793.0,0.088434]
[1725935526657,0.0108,56794.0,56793.0,0.21343264]
[1725935527168,0.0108,56795.0,56794.0,0.088033]
[1725935527363,0.0108,56799.0,56798.0,0.088026]
[1725935527562,0.0108,56799.0,56798.0,0.37342464]
[1725935527868,0.0108,56799.0,56798.0,0.21302464]
[1725935528261,0.0108,56799.0,56798.0,0.30055649]
[1725935528961,0.0108,56799.0,56798.0,0.21253049]
[1725935529162,0.0108,56799.0,56796.0,0.08753185]
[1725935529364,0.1718,56799.0,56798.0,0.007]
[1725935530068,0.1708,56799.0,56798.0,0.06648392]
[1725935530263,0.1708,56799.0,56798.0,0.014]
[1725935530669,0.258826,56799.0,56798.0,0.014]
[1725935531567,0.0108,56799.0,56798.0,0.005]
[1725935531771,0.0108,56799.0,56798.0,0.009]
[1725935532163,0.0108,56799.0,56798.0,0.006]
[1725935532365,0.14193776,56799.0,56798.0,0.002]
[1725935532664,0.14193776,56799.0,56798.0,0.001]
[1725935532858,0.14193776,56799.0,56798.0,0.002]
[1725935533870,0.38996276,56799.0,56798.0,0.002]
[1725935534068,0.38996276,56799.0,56798.0,0.001]
[1725935534268,0.38996276,56799.0,56798.0,0.002]
[1725935534568,0.47663519,56799.0,56787.0,0.088043]
[1725935534773,0.0004,56788.0,56787.0,0.088043]
[1725935535365,0.03440204,56788.0,56787.0,0.088043]
[1725935536071,0.03440204,56788.0,56787.0,0.006]
[1725935536274,0.21073094,56788.0,56787.0,0.006]
[1725935536471,0.12244504,56788.0,56787.0,0.006]
[1725935536668,0.24473298,56788.0,56787.0,0.006]
[1725935537066,0.16555568,56788.0,56787.0,0.012]
[1725935537264,0.24475428,56788.0,56787.0,0.012]
[1725935537467,0.12244504,56788.0,56787.0,0.012]
[1725935537974,0.12244504,56788.0,56787.0,0.01]
[1725935538367,0.16555482,56788.0,56787.0,0.01]
[1725935538767,0.16555482,56788.0,56787.0,0.006]
[1725935538973,0.16555482,56788.0,56787.0,0.004]
[1725935539274,0.07751182,56788.0,56787.0,0.092043]
[1725935540376,0.0485,56790.0,56787.0,0.16001801]
[1725935540679,0.088042,56788.0,56787.0,0.16201801]
[1725935542578,0.088042,56788.0,56787.0,0.16001801]
[1725935542873,0.088042,56788.0,56787.0,0.16201801]
[1725935543573,0.0485,56790.0,56787.0,0.16201801]
[1725935543574,0.0485,56790.0,56789.0,0.08804]